Cogmind - Beta 11.1 @@@ ROGUE MODE // 2022.04.25 @ 20:22:02 Player: Azken Zutik Result: Self-destructed Performance ------------- Evolutions (4) 2000 Regions Visited (11) 2200 Robots Destroyed (295) 1475 Value Destroyed (9399) 9399 Prototype IDs (40) 800 Alien Tech Used (0) 0 Bonus (5048) 5048 TOTAL SCORE: 20922 Bonus ------- High Alert Combat Kills 4016 Follower Combat Kills 120 Entered Garrisons 200 Used RIF Installer 500 Aligned with FarCom 300 Friendly Fire -88 Cogmind --------- Core Integrity 850/850 Matter 295/300 Energy 265/265 System Corruption 0% Temperature Cool (0) Movement Treading (240) Ox1 Location -6/Factory Parts ------- > --- POWER (1) -------- Improved Ion Engine > --- PROPULSION (5) --- Light Treads Light Treads Improved Treads Improved Treads > --- UTILITY (6) ------ Experimental Heat Sink Huge Storage Unit Advanced Weapon Cycler Improved Light Armor Plating > --- WEAPON (3) ------- Enhanced Autogun Improved Datajack > --- INVENTORY (25) --- Reinforced Fission Core Medium Treads Superbattery (1500) Medium Matter Pod (100) Improved Weapon Shielding Improved Weapon Shielding Light Armor Plating Improved Light Armor Plating Improved Light Armor Plating Reflective Plating Relay Coupler [NC] (25) Relay Coupler [NC] (26) Relay Coupler [NC] (21) Relay Coupler [NC] (24) Long-range Tractor Beam AS-neutralizer No. 17b Enhanced Autogun Enhanced Autogun Enhanced Autogun Gauss Rifle 12-ASH's Boomstick Rocket Launcher Missile Launcher Missile Launcher Longsword +1 Peak State ------------ > --- POWER ------------ Reinforced Fission Core > --- PROPULSION ------- Medium Treads Medium Treads Medium Treads Medium Treads > --- UTILITY ---------- Experimental Heat Sink Huge Storage Unit Advanced Weapon Cycler Improved Light Armor Plating > --- WEAPON ----------- Enhanced Autogun 12-ASH's Boomstick > --- INVENTORY -------- Light Deuterium Engine Light Treads Light Treads Light Treads Light Treads Superbattery Improved Light Armor Plating Improved Light Armor Plating Improved Light Armor Plating Improved Light Armor Plating Improved Light Armor Plating Improved Light Armor Plating Remote Shield Relay Coupler [NC] Long-range Tractor Beam AS-neutralizer No. 17b High-powered Shotgun High-powered Shotgun Enhanced Autogun Enhanced Autogun Rocket Launcher Missile Launcher Missile Launcher Improved Datajack Longsword +1 [Rating: 63] Favorites ----------- Power Reinforced Fission Core Engine Light Ion Engine Power Core Reinforced Fission Core Reactor Light Antimatter Reactor Propulsion Medium Treads Treads Medium Treads Leg Aluminum Leg Flight Unit Cooled VTOL Module Utility Improved Light Armor Plating Device Advanced Weapon Cycler Storage Huge Storage Unit Processor Experimental Targeting Computer Protection Improved Light Armor Plating Weapon Enhanced Autogun Energy Gun Small Laser Ballistic Gun Enhanced Autogun Launcher Missile Launcher Impact Weapon Hammer Slashing Weapon Longsword +1 Special Melee Weapon Improved Datajack Build | -11 -10 -10 -9 -9 -9 -8 -8 -8 -8 -8 -6 ------- Run | Scr Mat Min Mat Min Exi Min Mat Sto Gar Rec Fac Slots Evolved 8 | . . . 2 . . . 2 . . . 4 Power . | . . . . . . . . . . . . Propulsion 3 | . . . 1 . . . 1 . . . 1 Utility 4 | . . . 1 . . . 1 . . . 2 Weapon 1 | . . . . . . . . . . . 1 Parts Attached 199 | 4 18 6 20 4 5 22 43 48 25 4 . Power 12 | . 2 . 3 . . 1 1 1 4 . . Engine 8 | . 2 . 3 . . . . . 3 . . Core 3 | . . . . . . . 1 1 1 . . Reactor 1 | . . . . . . 1 . . . . . Propulsion 43 | 2 5 2 6 . 1 5 7 8 7 . . Treads 41 | 2 5 2 6 . 1 4 7 7 7 . . Leg 1 | . . . . . . 1 . . . . . Wheel . | . . . . . . . . . . . . Hover . | . . . . . . . . . . . . Flight 1 | . . . . . . . . 1 . . . Utility 52 | 1 7 1 4 2 2 10 10 12 3 . . Device 24 | 1 2 . . 1 1 5 4 9 1 . . Storage 5 | . 3 . . . . . 1 1 . . . Processor 2 | . . . . . . 1 1 . . . . Hackware . | . . . . . . . . . . . . Protection 21 | . 2 1 4 1 1 4 4 2 2 . . Artifact . | . . . . . . . . . . . . Weapon 92 | 1 4 3 7 2 2 6 25 27 11 4 . Energy Gun 1 | . . . . . . . . 1 . . . Energy Cannon . | . . . . . . . . . . . . Ballistic Gun 57 | 1 2 2 7 1 1 5 15 16 6 1 . Ballistic Cannon . | . . . . . . . . . . . . Launcher 22 | . 1 1 . 1 . 1 5 8 3 2 . Special Weapon . | . . . . . . . . . . . . Impact Weapon 1 | . 1 . . . . . . . . . . Slashing Weapon 6 | . . . . . 1 . 1 2 2 . . Piercing Weapon . | . . . . . . . . . . . . Special Melee Weapon 5 | . . . . . . . 4 . . 1 . Unidentified Prototypes 14 | . . . 3 1 . 6 3 1 . . . Parts Lost 17 | . . . . . . 8 2 3 4 . . Power 1 | . . . . . . . 1 . . . . Propulsion 7 | . . . . . . 3 . 2 2 . . Utility 8 | . . . . . . 4 1 1 2 . . Weapon 1 | . . . . . . 1 . . . . . Highest Loss Streak 6 | . . . . . . 6 1 3 3 . . To Critical Strikes . | . . . . . . . . . . . . Average Slot Usage (%) 99 | . 99 100 99 99 100 99 99 99 100 100 . Engine 5 | . 13 14 11 11 11 2 . . 6 9 . Core 4 | . . . . . . . 8 9 2 . . Treads 33 | . 27 28 32 33 33 32 36 35 36 36 . Device 9 | . 6 . . . . 1 10 16 15 18 . Storage 10 | . 14 14 11 11 11 11 9 9 9 9 . Protection 14 | . 7 14 21 21 21 19 16 10 11 9 . Ballistic Gun 19 | . 26 23 21 21 21 21 16 17 16 9 . Naked Turns . | . . . . . . . . . . . . Heaviest Build 117 | 13 55 55 64 64 64 67 117 117 116 98 . Greatest Support 112 | 40 40 40 60 60 60 60 112 112 101 86 . Greatest Overweight (x) 1 | . 1 1 1 1 1 1 1 1 1 1 . Average Overweight (x) . | . . 1 . 1 1 . . . . 1 . Largest Inventory Capacity 25 | 8 20 20 20 20 20 20 25 25 25 25 . Average Capacity 22 | 8 17 20 20 20 20 20 24 25 25 25 . Most Carried 25 | 6 20 20 20 20 20 20 25 25 25 25 . Average Carried 21 | 4 11 19 19 19 19 18 24 24 24 24 . Final Capacity 25 | 8 20 20 20 20 20 20 25 25 25 25 25 Final Carried 25 | 5 20 20 20 20 20 20 25 25 25 25 25 Class Distribution -------------------- 87% | Mutant 10% | Bothacker-Mutant Dominant Class ---------------- Mutant | -10/Materials Mutant | -10/Mines Mutant | -9/Materials Mutant | -9/Mines Mutant | -9/Exiles Mutant | -8/Mines Mutant | -8/Materials Mutant | -8/Storage Bothacker-Mutant | -8/Garrison Commander-Mutant | -8/Recycling Commander-Mutant | -6/Factory Resources | -11 -10 -10 -9 -9 -9 -8 -8 -8 -8 -8 -6 ----------- Run | Scr Mat Min Mat Min Exi Min Mat Sto Gar Rec Fac Matter Collected 7723 | 264 499 167 482 111 50 383 1836 2457 1367 107 . Remotely 248 | . . . . . . 248 . . . . . Salvage Created 9804 | 11 760 184 721 123 103 296 3113 3444 856 193 . Parts 567 | 2 44 19 59 7 3 27 168 185 47 6 . Haulers Intercepted 17 | . 2 . 3 . . . 6 6 . . . Recyclers Shooed 6 | 1 1 . . . . . 4 . . . . Parts Field Recycled . | . . . . . . . . . . . . Retrieved Matter . | . . . . . . . . . . . . Parts Self-Destructed . | . . . . . . . . . . . . Prevented . | . . . . . . . . . . . . Kills | -11 -10 -10 -9 -9 -9 -8 -8 -8 -8 -8 -6 ------- Run | Scr Mat Min Mat Min Exi Min Mat Sto Gar Rec Fac Combat Hostiles Destroyed 219 | . 11 9 14 5 1 13 57 77 30 2 . Melee 4 | . . . . . 1 . . 2 1 . . Guns 127 | . 11 3 14 2 . 10 34 36 16 1 . AOE 88 | . . 6 . 3 . 3 23 39 13 1 . Classes Destroyed 19 | 1 7 1 3 . . . 4 1 1 1 . Worker 21 | . 2 . 3 1 . . 6 9 . . . Builder 5 | . . . 1 . . . . 4 . . . Tunneler 3 | 1 1 . . . . . 1 . . . . Hauler 17 | . 2 . 3 . . . 6 6 . . . Recycler 24 | . 3 . . . . . 11 8 . 2 . Mechanic 6 | . . . . . . . . 6 . . . Operator 3 | . 1 . . . . . . 2 . . . Drone 1 | . . . . . . . . . . 1 . Watcher 11 | . 3 . 1 . . . 5 2 . . . Swarmer 50 | . 8 6 4 3 . 7 12 3 7 . . Saboteur 4 | . . . . . . . . . 4 . . Grunt 98 | . 3 3 5 2 . 4 24 46 11 . . Brawler 8 | . . . . . . . 3 5 . . . Duelist 14 | . . . 1 . . 2 3 8 . . . Protector 7 | . . . . . . . 3 4 . . . Sentry 29 | . . . 4 . . . 9 11 5 . . Hunter 5 | . . . . . . . 2 . 3 . . Programmer 2 | . . . . . . . 1 . . 1 . Zionite 1 | . . 1 . . . . . . . . . Best Kill Streak 25 | 1 4 3 4 4 1 7 7 25 5 2 . Combat Bots Only 20 | . 3 3 4 3 1 7 6 20 5 2 . Max Kills in Single Turn 4 | 1 2 3 1 3 1 2 3 4 3 1 . Gunslinging 1 | . 1 . . . . . 1 1 . . . Exploded 4 | . . 3 . 2 . 2 3 4 3 1 . Melee 1 | . . . . . 1 . . 1 1 . . Uniques/NPCs Destroyed 1 | . . . . . 1 . . . . . . 8R-AWN (-9/Exiles) Combat | -11 -10 -10 -9 -9 -9 -8 -8 -8 -8 -8 -6 -------- Run | Scr Mat Min Mat Min Exi Min Mat Sto Gar Rec Fac Damage Taken 7063 | . 211 247 688 258 186 1640 989 1691 1122 31 . Core 753 | . 32 60 66 53 . 253 109 134 46 . . Absorbed by Shields 277 | . . . . . . . . 264 13 . . Redirected to Shielding 47 | . . . . . . 3 12 . 32 . . Regen/Repaired (Parts) 478 | . . . 111 . . . 55 312 . . . Core Remaining (%) 54 | 100 . 63 . . . 7 . . . 47 . Volleys Fired 577 | 4 58 12 48 14 1 31 131 166 108 4 . Largest 2 | 2 2 2 2 2 2 2 2 2 2 1 . Hottest 53 | 40 40 40 46 46 46 53 50 50 50 33 . Shots Fired 1040 | 8 116 22 96 26 2 58 236 292 179 5 . Gun 948 | 8 116 19 96 24 2 54 214 252 159 4 . Cannon . | . . . . . . . . . . . . Launcher 92 | . . 3 . 2 . 4 22 40 20 1 . Special . | . . . . . . . . . . . . Kinetic 946 | 8 116 19 96 24 2 54 214 250 159 4 . Thermal . | . . . . . . . . . . . . Explosive 92 | . . 3 . 2 . 4 22 40 20 1 . Electromagnetic 2 | . . . . . . . . 2 . . . Robot Hit Streak 20 | 3 7 16 13 6 . 7 20 15 14 5 . Robot Miss Streak 9 | 3 4 1 3 1 2 4 4 9 3 . . Penetration Max . | . . . . . . . . . . . . Secondary Targets 7 | . 1 . 1 . . . 2 3 . . . Max Gunslinging Chain 1 | . 1 . 1 . . . 1 1 . . . Shots Hit Robots 691 | 4 67 16 66 18 7 37 172 202 87 15 . Core Hits 493 | 1 28 15 31 9 4 25 129 198 49 4 . Critical Kills 5 | . . . . . . . 3 . 2 . . Critical Parts Destroyed 2 | . . . . . . 1 . . 1 . . Critical Strikes 8 | . . . . . 1 1 3 . 3 . . Destroy 7 | . . . . . . 1 3 . 3 . . Sever 1 | . . . . . 1 . . . . . . Melee Attacks 68 | . 4 . . . 7 . 36 8 2 11 . Impact 4 | . 4 . . . . . . . . . . Slashing 52 | . . . . . 7 . 35 8 2 . . Piercing . | . . . . . . . . . . . . Sneak Attacks 17 | . 2 . . . . . 2 2 . 11 . Combat Hostiles . | . . . . . . . . . . . . Follow-up Attacks . | . . . . . . . . . . . . Damage Inflicted 26221 | 46 977 452 1145 436 332 1180 6877 11946 2700 130 . Guns 13606 | 46 828 175 1075 274 18 926 3825 4699 1666 74 . Cannons . | . . . . . . . . . . . . Explosions 11259 | . . 247 . 116 . 254 2890 6683 1034 35 . Melee 1043 | . 116 . . . 314 . 112 501 . . . Ramming 313 | . 33 30 70 46 . . 50 63 . 21 . Kinetic 13606 | 46 828 175 1075 274 18 926 3825 4699 1666 74 . Thermal . | . . . . . . . . . . . . Explosive 11259 | . . 247 . 116 . 254 2890 6683 1034 35 . Electromagnetic . | . . . . . . . . . . . . Impact 116 | . 116 . . . . . . . . . . Slashing 927 | . . . . . 314 . 112 501 . . . Piercing . | . . . . . . . . . . . . Highest Corruption 6 | . 1 1 . . . . 5 6 6 6 . Average Corruption 4 | . 1 1 . . . . 5 5 6 6 . Corruption Purged . | . . . . . . . . . . . . Corruption Blocked . | . . . . . . . . . . . . Effects 356 | . 2 17 . . . . 96 136 83 22 . Message Errors 89 | . 1 4 . . . . 29 31 17 7 . Matter Fused 73 | . . 3 . . . . 17 28 23 2 . Heat Flow Errors 46 | . . 3 . . . . 12 18 12 1 . Energy Discharges 49 | . 1 2 . . . . 12 21 6 7 . Parts Rejected 1 | . . . . . . . . 1 . . . Data Loss (minor) 48 | . . 2 . . . . 16 14 13 3 . Data Loss (major) 17 | . . 2 . . . . 5 4 5 1 . Misfires 17 | . . 1 . . . . 1 10 4 1 . Alerts 10 | . . . . . . . 4 5 1 . . Weapon Failures 6 | . . . . . . . . 4 2 . . Overload Shots . | . . . . . . . . . . . . Overflow Damage 484 | . 36 . . . . 2 72 341 33 . . Projectiles . | . . . . . . . . . . . . Explosions 243 | . . . . . . 2 72 136 33 . . Melee 241 | . 36 . . . . . . 205 . . . Knockbacks 3 | . . 1 2 . . . . . . . . Impact 3 | . . 1 2 . . . . . . . . Kinetic . | . . . . . . . . . . . . Secondary . | . . . . . . . . . . . . Self-Inflicted Damage 289 | . . 55 . . . . . 163 71 . . Shots 11 | . . 2 . . . . . 6 3 . . Rammed 35 | . 5 7 6 7 . . 3 6 . 1 . Targets Rammed 38 | . 5 7 7 7 . . 4 7 . 1 . Kicked . | . . . . . . . . . . . . Crushed 3 | . . . 1 . . . 1 1 . . . Highest Temperature 351 | . . 133 87 81 . 103 266 351 243 104 . Average Temperature 63 | . . 37 25 37 . 22 58 83 58 57 . Received Heat Transfer 2014 | . 54 96 228 114 . 180 288 802 243 9 . Effects 3 | . . . . . . . . 3 . . . Energy Bleed 1 | . . . . . . . . 1 . . . Interference 2 | . . . . . . . . 2 . . . Siege Activations . | . . . . . . . . . . . . Robots Corrupted . | . . . . . . . . . . . . Combat Hostiles . | . . . . . . . . . . . . Parts Fried 6 | . 6 . . . . . . . . . . Impact Corruptions 3 | . 3 . . . . . . . . . . Robots Melted . | . . . . . . . . . . . . Combat Hostiles . | . . . . . . . . . . . . Parts Melted . | . . . . . . . . . . . . Heat Transferred . | . . . . . . . . . . . . Parts Sabotaged 1 | . . . . . . . . . 1 . . Parts Stolen . | . . . . . . . . . . . . Parts Stripped . | . . . . . . . . . . . . Power Chain Reactions . | . . . . . . . . . . . . Missiles Intercepted . | . . . . . . . . . . . . Alert | -11 -10 -10 -9 -9 -9 -8 -8 -8 -8 -8 -6 ------- Run | Scr Mat Min Mat Min Exi Min Mat Sto Gar Rec Fac Peak Influence 2532 | 5 131 205 265 108 . 264 1310 2148 2532 1403 . Initial 1416 | . 3 33 33 37 . . 102 553 1396 1139 1416 Average 754 | 3 41 70 119 27 . 49 559 1167 2167 1261 . Maximum Alert Level 5 | . . 1 1 . . 1 4 5 5 4 . Low Security (%) 43 | 100 100 97 83 100 . 97 31 . . . . Level 1 4 | . . 2 16 . . 2 14 . . . . Level 2 8 | . . . . . . . 9 27 . . . Level 3 16 | . . . . . . . 40 33 . . . Level 4 7 | . . . . . . . 4 8 7 100 . Level 5 19 | . . . . . . . . 30 92 . . High Security . | . . . . . . . . . . . . Max Security . | . . . . . . . . . . . . Sterilizations 2 | . . . . . . . 1 1 . . . Squads Dispatched 34 | . 2 . 2 . . . 13 16 . 1 . Investigation 6 | . . . 1 . . . 3 2 . . . Extermination . | . . . . . . . . . . . . Reinforcement 6 | . 2 . 1 . . . . 2 . 1 . Assault 14 | . . . . . . . 4 10 . . . Garrison 8 | . . . . . . . 6 2 . . . Intercept . | . . . . . . . . . . . . Searches Triggered . | . . . . . . . . . . . . Construction Impeded 2 | . . . . . . . . 1 . 1 . Haulers Reinforced . | . . . . . . . . . . . . Active Scanning Responses . | . . . . . . . . . . . . Cargo Convoy Interrupts . | . . . . . . . . . . . . Stealth | -11 -10 -10 -9 -9 -9 -8 -8 -8 -8 -8 -6 --------- Run | Scr Mat Min Mat Min Exi Min Mat Sto Gar Rec Fac Distress Signals 6 | . . . 2 . . . 2 2 . . . Communications Jammed . | . . . . . . . . . . . . Distress Signals . | . . . . . . . . . . . . Times Spotted 267 | . 20 7 22 5 2 13 67 102 25 4 . Peak Tracking Total 10 | . 3 3 5 3 2 5 6 10 5 2 . Tactical Retreats 8 | . . . 1 . 1 1 1 4 . . . Traps | -11 -10 -10 -9 -9 -9 -8 -8 -8 -8 -8 -6 ------- Run | Scr Mat Min Mat Min Exi Min Mat Sto Gar Rec Fac Traps Triggered 21 | . 6 . 1 . . . 1 1 12 . . Indirectly . | . . . . . . . . . . . . Trap Hack Attempts 89 | . . . . . . . 89 . . . . Triggered . | . . . . . . . . . . . . Disarmed 4 | . . . . . . . 4 . . . . Reprogrammed 1 | . . . . . . . 1 . . . . Reused 1 | . . . . . . . 1 . . . . Traps Extracted . | . . . . . . . . . . . . Installed . | . . . . . . . . . . . . Triggered 1 | . . . . . . . 1 . . . . Exploded 1 | . . . . . 1 . . . . . . Machines | -11 -10 -10 -9 -9 -9 -8 -8 -8 -8 -8 -6 ---------- Run | Scr Mat Min Mat Min Exi Min Mat Sto Gar Rec Fac Machines Disabled 37 | . 1 6 . . . 2 8 10 7 3 . Max in Single Turn 4 | . 1 4 . . . 1 1 2 2 . . Garrison Relay 5 | . . . . . . . . . 5 . . Phase Generator 1 | . . . . . . . . . 1 . . Machines Sabotaged . | . . . . . . . . . . . . Garrisons Compromised . | . . . . . . . . . . . . Overloaded Fab Kills . | . . . . . . . . . . . . Hacking | -11 -10 -10 -9 -9 -9 -8 -8 -8 -8 -8 -6 --------- Run | Scr Mat Min Mat Min Exi Min Mat Sto Gar Rec Fac Machines Accessed 40 | . 3 1 5 1 1 . 12 14 . 3 . Terminals 26 | . 2 1 4 . . . 9 9 . 1 . Fabricators . | . . . . . . . . . . . . Repair Stations 5 | . 1 . 1 . . . 1 2 . . . Recycling Units 4 | . . . . . . . . 2 . 2 . Scanalyzers 1 | . . . . . . . 1 . . . . Garrison Access 2 | . . . . . . . 1 1 . . . Total Hacks 95 | . 7 6 17 1 1 . 24 33 . 6 . Successful 54 | . 3 3 7 1 1 . 15 20 . 4 . Failed 39 | . 4 2 10 . . . 8 13 . 2 . Catastrophic 4 | . . . 2 . . . 2 . . . . Database Lockouts 2 | . . 1 . . . . 1 . . . . Manual 61 | . 6 7 10 . 1 . 16 16 . 5 . Terminals 65 | . 6 6 13 . . . 15 22 . 3 . Fabricators . | . . . . . . . . . . . . Repair Stations 14 | . 1 . 4 . . . 3 6 . . . Recycling Units 7 | . . . . . . . . 4 . 3 . Scanalyzers 3 | . . . . . . . 3 . . . . Garrison Access 4 | . . . . . . . 3 1 . . . Terminal Hacks 24 | . 3 3 3 1 1 . 3 8 . 2 . Record 1 | . . . . . . . . 1 . . . Robot Analysis 9 | . 3 3 2 . . . 1 . . . . Prototype ID Bank 1 | . . . . . . . . 1 . . . Open Door 5 | . . . . 1 . . . 4 . . . Level Access Points 1 | . . . . . . . . . . 1 . Branch Access Points 1 | . . . 1 . . . . . . . . Repair Station Index 1 | . . . . . . . 1 . . . . Unreport Threat 3 | . . . . . . . . 2 . 1 . Zone Layout 1 | . . . . . . . 1 . . . . EX-Prototype ID Bank 1 | . . . . . 1 . . . . . . Fabricator Hacks . | . . . . . . . . . . . . Repair Station Hacks 12 | . . . 4 . . . 2 6 . . . Scan Component 6 | . . . 2 . . . 1 3 . . . Repair 6 | . . . 2 . . . 1 3 . . . Recycling Unit Hacks . | . . . . . . . . . . . . Scanalyzer 2 | . . . . . . . 2 . . . . Insert Component 1 | . . . . . . . 1 . . . . Analyze 1 | . . . . . . . 1 . . . . Garrison Access Hacks 1 | . . . . . . . . 1 . . . Unlock Access 1 | . . . . . . . . 1 . . . Unauthorized Hacks 14 | . . . . . . . 7 5 . 2 . Terminals 7 | . . . . . . . 4 3 . . . Botnet 7 | . . . . . . . 4 3 . . . Fabricators . | . . . . . . . . . . . . Repair Stations . | . . . . . . . . . . . . Recycling Units 4 | . . . . . . . . 2 . 2 . Tunnel 4 | . . . . . . . . 2 . 2 . Scanalyzers 1 | . . . . . . . 1 . . . . Extract 1 | . . . . . . . 1 . . . . Garrison Access 2 | . . . . . . . 2 . . . . Restock 1 | . . . . . . . 1 . . . . Eject 1 | . . . . . . . 1 . . . . Data Cores Recovered 1 | . . . . . . . . 1 . . . Used . | . . . . . . . . . . . . Hacking Detections 28 | . 3 1 5 . . . 9 9 . 1 . Full Trace Events 3 | . . . . . . . 1 2 . . . Feedback Events . | . . . . . . . . . . . . Feedback Blocked . | . . . . . . . . . . . . Robot Schematics Acquired . | . . . . . . . . . . . . Robots Built . | . . . . . . . . . . . . Authchips . | . . . . . . . . . . . . Time . | . . . . . . . . . . . . Total Robot Build Rating . | . . . . . . . . . . . . Part Schematics Acquired 12 | . . . . . . . 12 . . . . Parts Built . | . . . . . . . . . . . . Authchips . | . . . . . . . . . . . . Time . | . . . . . . . . . . . . Total Part Build Rating . | . . . . . . . . . . . . Parts Repaired 6 | . . . 2 . . . 1 3 . . . Time 234 | . . . 58 . . . 38 138 . . . Parts Recycled . | . . . . . . . . . . . . Recycled Matter . | . . . . . . . . . . . . Retrieved Matter . | . . . . . . . . . . . . Retrieved Components . | . . . . . . . . . . . . Parts Scanalyzed 1 | . . . . . . . 1 . . . . Part Schematics Acquired 1 | . . . . . . . 1 . . . . Parts Damaged . | . . . . . . . . . . . . Bothacking | -11 -10 -10 -9 -9 -9 -8 -8 -8 -8 -8 -6 ------------ Run | Scr Mat Min Mat Min Exi Min Mat Sto Gar Rec Fac Used RIF Installer 1 | . . . . . . . . . 1 . . Robots Hacked 1 | . . . . . . . 1 . . . . Non-combat 1 | . . . . . . . 1 . . . . Combat . | . . . . . . . . . . . . Robot Hacks Applied 1 | . . . . . . . 1 . . . . no_distress 1 | . . . . . . . 1 . . . . Relay Couplers Released 22 | . . . . . . . 6 . 16 . . Ejected 3 | . . . . . . . 3 . . . . Machine Destruction 16 | . . . . . . . . . 16 . . Programmers 3 | . . . . . . . 3 . . . . Fabnet Peak Effective % . | . . . . . . . . . . . . Robots Rewired 8 | . . . . . . . . . . 8 . Allies Hacked 1 | . . . . . 1 . . . . . . Hacks Repelled . | . . . . . . . . . . . . Allies | -11 -10 -10 -9 -9 -9 -8 -8 -8 -8 -8 -6 -------- Run | Scr Mat Min Mat Min Exi Min Mat Sto Gar Rec Fac Total Allies 14 | . . 3 . 3 . . . . . 8 . Largest Group 8 | . . 3 . 3 3 . . . . 8 . Highest-Rated Group 132 | . . 76 . 40 40 . . . . 132 . Highest-Rated Ally 31 | . . 31 . 16 16 . . . . 21 . Total Orders 3 | . . . . . 3 . . . . . . RETURN 3 | . . . . . 3 . . . . . . Ally Attacks 210 | . . 24 . . 27 3 . . . 156 . Total Damage 2184 | . . 359 . . 160 12 . . . 1653 . Kills 40 | . . 3 . . . . . . . 37 . Allies Corrupted . | . . . . . . . . . . . . Allies Melted . | . . . . . . . . . . . . Intel | -11 -10 -10 -9 -9 -9 -8 -8 -8 -8 -8 -6 ------- Run | Scr Mat Min Mat Min Exi Min Mat Sto Gar Rec Fac Robot Analysis Total 9 | . 3 3 2 . . . 1 . . . . Derelict Logs Recovered 4 | . . 2 . 2 . . . . . . . Drone Launches 10 | . . . . . 8 2 . . . . . Drone Recoveries 7 | . . . . . 6 1 . . . . . Exploration | -11 -10 -10 -9 -9 -9 -8 -8 -8 -8 -8 -6 ------------- Run | Scr Mat Min Mat Min Exi Min Mat Sto Gar Rec Fac Turns Passed 22074 | 38 2173 1966 2008 1407 666 702 4612 4707 3037 758 . Spaces Moved 7342 | 12 673 728 595 559 251 239 1349 1362 1268 306 . Core . | . . . . . . . . . . . . Treads 7342 | 12 673 728 595 559 251 239 1349 1362 1268 306 . Legs . | . . . . . . . . . . . . Wheels . | . . . . . . . . . . . . Hover . | . . . . . . . . . . . . Flight . | . . . . . . . . . . . . Fastest Speed 156 | 160 160 240 160 240 240 160 160 160 156 240 . Average Speed 225 | 160 208 240 193 240 240 238 226 237 213 240 . Slowest Speed 240 | 160 240 240 240 240 240 240 240 240 240 240 . Overloaded Moves . | . . . . . . . . . . . . Propulsion Burnouts . | . . . . . . . . . . . . Robots Hopped . | . . . . . . . . . . . . Cave-ins Triggered . | . . . . . . . . . . . . Exploration Rate (%) 69 | 3 88 99 43 82 60 60 76 95 97 65 . Regions Visited 11 Branch Regions 6 Pre-discovered Areas 6 | . . 1 . 1 . . . 2 . 2 . Known Exits Taken 5 | . . . 1 . . 1 1 1 . 1 . Unknown Exits Taken 5 | 1 1 1 . 1 1 . . . . . . Scrap Searched 3 | . . 1 . 1 . 1 . . . . . Spaces Dug 6 | . 1 . . . . . 4 1 . . . Terrain Destroyed 707 | . 1 28 . 11 . 49 190 270 154 4 . Melee 1 | . 1 . . . . . . . . . . Projectile 98 | . . . . . . 7 31 58 2 . . AOE 608 | . . 28 . 11 . 42 159 212 152 4 . Terrain Rammed . | . . . . . . . . . . . . Walls Destroyed . | . . . . . . . . . . . . Machines Disabled . | . . . . . . . . . . . . Actions | -11 -10 -10 -9 -9 -9 -8 -8 -8 -8 -8 -6 --------- Run | Scr Mat Min Mat Min Exi Min Mat Sto Gar Rec Fac Total 12109 | 22 1311 918 1364 590 310 314 2746 2701 1505 328 . Wait 3534 | . 520 156 659 2 27 12 1019 1075 64 . . Move 7331 | 11 672 727 594 558 250 238 1348 1361 1267 305 . Hop . | . . . . . . . . . . . . Pick Up 116 | 1 21 5 13 1 9 4 36 16 9 1 . Fast Attach 45 | 1 8 . 7 2 . 7 7 9 3 1 . Attach 27 | . 1 1 3 . . 7 6 4 4 1 . Detach 8 | . 1 . 1 1 . 3 1 1 . . . Swap 127 | 3 9 5 10 2 5 8 30 35 18 2 . Drop 129 | 2 12 5 22 3 11 4 39 19 10 2 . Fire 577 | 4 58 12 48 14 1 31 131 166 108 4 . Melee 68 | . 4 . . . 7 . 36 8 2 11 . Ram . | . . . . . . . . . . . . Kick . | . . . . . . . . . . . . Crush 38 | . 5 7 7 7 . . 4 7 . 1 . Escape Stasis 20 | . . . . . . . . . 20 . . Rewire . | . . . . . . . . . . . . Trap 89 | . . . . . . . 89 . . . . Miscellaneous . | . . . . . . . . . . . . Route ------- -11/Scrapyard -10/Materials (discovered 4 exits: *Mat x3 / *Min) -10/Mines (discovered 2 exits: *Mat x2) -9/Materials -9/Mines (discovered 3 exits: *Mat x2 / *Exi) -9/Exiles -8/Mines -8/Materials (discovered 3 exits: [*Fac x2] / *Sto) -8/Storage (discovered 3 exits: [*Fac] / *Rec / Gar) -8/Garrison (discovered 3 exits: *Rec x3) -8/Recycling -6/Factory History --------- Turn | Location | Event 19 | -11/Scrapyard | Discovered new exit (range 3) 39 | -11/Scrapyard | Entered Materials 318 | -10/Materials | Build established: Mutant 1146 | -10/Materials | Discovered new exit (range 5) 1188 | -10/Materials | Discovered new exit (range 14) 1397 | -10/Materials | Discovered new exit (range 8) 1533 | -10/Materials | Discovered new exit (range 8) 2212 | -10/Materials | Entered Mines 2575 | -10/Mines | Learned location of Zion (-7) 2614 | -10/Mines | Learned Materials garrison access intel 2623 | -10/Mines | Discovered new exit (range 7) 2830 | -10/Mines | Received a Mining Laser from a helpful Derelict 2946 | -10/Mines | Central database locked down 3081 | -10/Mines | Discovered new exit (range 12) 4178 | -10/Mines | Entered Materials 4178 | -9/Materials | Evolved 2 slots: Propulsion x1, Utility x1 5102 | -9/Materials | Repaired Lgt. Armor Plating 5136 | -9/Materials | Repaired Hvy. Assault Rifle 5571 | -9/Materials | Identified exit to Mines 6186 | -9/Materials | Entered Mines 6359 | -9/Mines | Found a hidden stash of uninstalled traps 6411 | -9/Mines | Learned location of Storage (-8) 6637 | -9/Mines | Deemed a non-threat by the Exiles lab entrance 6640 | -9/Mines | Discovered new exit (range 5) 6786 | -9/Mines | Discovered new exit (range 16) 6906 | -9/Mines | Received a Rocket Launcher from a helpful Derelict 7090 | -9/Mines | Identified exit to Materials 7278 | -9/Mines | Found the Drone Emporium 7290 | -9/Mines | Found Prototype Device 7290 | -9/Mines | Identified Thief Drone Bay 7519 | -9/Mines | Assisted by bots powering up and referring to "LRC-V3" 7593 | -9/Mines | Entered Exiles 7593 | -9/Exiles | Accompanied by 3 allies 7665 | -9/Exiles | Met 8R-AWN 7721 | -9/Exiles | Met EX-HEX 7788 | -9/Exiles | Met EX-BIN 7836 | -9/Exiles | Aligned with FarCom system 7838 | -9/Exiles | Given EX-Vault access code 7910 | -9/Exiles | Opened EX-Vault 7923 | -9/Exiles | Found Superbattery 7946 | -9/Exiles | Found Longsword +1 7999 | -9/Exiles | Warned to stay clear of 0b10 Research branches 8010 | -9/Exiles | Exiles lab attacked by MAIN.C 8155 | -9/Exiles | Discovered new exit (range 10) 8171 | -9/Exiles | Attacked by the Exiles 8179 | -9/Exiles | Found Prototype Device 8207 | -9/Exiles | Destroyed 8R-AWN 8217 | -9/Exiles | Found Prototype Ballistic Gun 8221 | -9/Exiles | Found Prototype Processor 8259 | -9/Exiles | Stole two prototypes: Superbattery, Longsword +1 8259 | -9/Exiles | Entered Mines 8259 | -8/Mines | Identified 8R-AWN's Boregun 8260 | -8/Mines | 12-ASH came to Exiles' defense 8279 | -8/Mines | Core integrity fell below 50% 8295 | -8/Mines | Core integrity fell below 20% 8305 | -8/Mines | Found 12-ASH's Boomstick 8331 | -8/Mines | Lost 6 parts (2n3u1w) 8421 | -8/Mines | Found Prototype Processor 8421 | -8/Mines | Identified Exp. Core Analyzer 8916 | -8/Mines | Destroyed 7 combat bots 8924 | -8/Mines | Discovered exit to Materials (range 11) 8961 | -8/Mines | Entered Materials 8961 | -8/Materials | Evolved 2 slots: Propulsion x1, Utility x1 8962 | -8/Materials | Identified exit to Storage 8963 | -8/Materials | Loaded intel: 1 garrison access location 8965 | -8/Materials | Identified AS-neutralizer No. 17b 8966 | -8/Materials | Identified Exp. Targeting Computer 10598 | -8/Materials | Discovered new exit (range 16) 10704 | -8/Materials | Repaired Missile Launcher 11285 | -8/Materials | Discovered new exit (range 13) 11499 | -8/Materials | Garrison activated, responded to threat 11761 | -8/Materials | First assault squad dispatched 11807 | -8/Materials | Garrison activated, responded to threat 12190 | -8/Materials | Central database locked down 13408 | -8/Materials | Sterilization system engaged 13408 | -8/Materials | Non-combat units ordered to evacuate 13508 | -8/Materials | Combat units ordered to evacuate 13573 | -8/Materials | Entered Storage 13779 | -8/Storage | Garrison activated, responded to threat 14226 | -8/Storage | Repaired Remote Shield 14542 | -8/Storage | Identified exit to Garrison 15126 | -8/Storage | Repaired Med. Treads 15173 | -8/Storage | First assault squad dispatched 15370 | -8/Storage | Used back door to open Recycling access 15370 | -8/Storage | Discovered new exit (range 4) 15616 | -8/Storage | Discovered new exit (range 16) 15938 | -8/Storage | Repaired Med. Treads 16889 | -8/Storage | Destroyed 20 combat bots 16897 | -8/Storage | Lost 3 parts (2n1u) 17295 | -8/Storage | Destroyed 8 combat bots 17588 | -8/Storage | Garrison activated, responded to threat 18154 | -8/Storage | Sterilization system engaged 18154 | -8/Storage | Non-combat units ordered to evacuate 18254 | -8/Storage | Combat units ordered to evacuate 18280 | -8/Storage | Entered Garrison 18393 | -8/Garrison | Triggered checkpoint 18490 | -8/Garrison | Discovered new exit (range 10) 18518 | -8/Garrison | Installed Relay Interface Framework 18560 | -8/Garrison | Triggered checkpoint 18636 | -8/Garrison | Lost 3 parts (2n1u) 18685 | -8/Garrison | Garrison Relay disabled 19009 | -8/Garrison | Core integrity fell below 50% 19054 | -8/Garrison | Triggered checkpoint 19066 | -8/Garrison | Garrison Relay disabled 19266 | -8/Garrison | Phase Generator disabled 19378 | -8/Garrison | Garrison Relay disabled 19656 | -8/Garrison | Triggered checkpoint 19696 | -8/Garrison | Build established: Bothacker-Mutant 19998 | -8/Garrison | Discovered new exit (range 14) 20120 | -8/Garrison | Triggered checkpoint 20171 | -8/Garrison | Garrison Relay disabled 20311 | -8/Garrison | Triggered checkpoint 20530 | -8/Garrison | Triggered checkpoint 20565 | -8/Garrison | Garrison Relay disabled 20617 | -8/Garrison | Discovered new exit (range 12) 21162 | -8/Garrison | Triggered checkpoint 21317 | -8/Garrison | Entered Recycling 21323 | -8/Recycling | Spotter reported a threat 21374 | -8/Recycling | Spotter reported a threat 21383 | -8/Recycling | Spotter reported a threat 21384 | -8/Recycling | Spotter reported a threat 21410 | -8/Recycling | Spotter reported a threat 21415 | -8/Recycling | Spotter reported a threat 21427 | -8/Recycling | Spotter reported a threat 21436 | -8/Recycling | Spotter reported a threat 21468 | -8/Recycling | Spotter reported a threat 21471 | -8/Recycling | Spotter reported a threat 21476 | -8/Recycling | Spotter reported a threat 21480 | -8/Recycling | Spotter reported a threat 21491 | -8/Recycling | Spotter reported a threat 21538 | -8/Recycling | Spotter reported a threat 21557 | -8/Recycling | Spotter reported a threat 21559 | -8/Recycling | Spotter reported a threat 21595 | -8/Recycling | Spotter reported a threat 21616 | -8/Recycling | Spotter reported a threat 21625 | -8/Recycling | Spotter reported a threat 21625 | -8/Recycling | Spotter reported a threat 21625 | -8/Recycling | Spotter reported a threat 21625 | -8/Recycling | Spotter reported a threat 21662 | -8/Recycling | Build established: Commander-Mutant 21682 | -8/Recycling | Spotter reported a threat 21685 | -8/Recycling | Spotter reported a threat 21686 | -8/Recycling | Spotter reported a threat 21735 | -8/Recycling | Spotter reported a threat 21738 | -8/Recycling | Spotter reported a threat 21741 | -8/Recycling | Spotter reported a threat 21744 | -8/Recycling | Spotter reported a threat 21787 | -8/Recycling | Spotter reported a threat 21787 | -8/Recycling | Spotter reported a threat 21810 | -8/Recycling | Spotter reported a threat 21828 | -8/Recycling | Spotter reported a threat 21840 | -8/Recycling | Spotter reported a threat 21860 | -8/Recycling | Spotter reported a threat 21883 | -8/Recycling | Spotter reported a threat 21883 | -8/Recycling | Spotter reported a threat 21919 | -8/Recycling | Spotter reported a threat 21958 | -8/Recycling | Identified exit to Factory 21961 | -8/Recycling | Spotter reported a threat 21974 | -8/Recycling | Spotter reported a threat 22006 | -8/Recycling | Spotter reported a threat 22027 | -8/Recycling | Spotter reported a threat 22052 | -8/Recycling | Spotter reported a threat 22059 | -8/Recycling | Spotter reported a threat 22075 | -8/Recycling | Entered Factory 22075 | -6/Factory | Evolved 4 slots: Propulsion x1, Utility x2, Weapon x1 22075 | -6/Factory | Self-destructed Last Messages --------------- 21981_ ALERT: Threat analysis in progress, dispatching additional drones. 21985_ N-01 Spotter destroyed. 22006_ ALERT: Unidentified potential threat approaching Factory. 22012_ 7L|KI04FHMZ10EQ LXTQK<8U4ESBT&Z 22025_ N-01 Spotter is scanning... 22027_ System corrupted: Component data lost. 22027_ N-01 Spotter sends a signal. 22027_ ALERT: Unidentified potential threat approaching Factory. 22028_ Penetrated by Slug. 22031_ Destroyed Lgt. Nuclear Core. 22031_ Defender 3a destroyed. 22032_ ALERT: Threat analysis in progress, dispatching additional drones. 22052_ ALERT: Unidentified potential threat approaching Factory. 22058_ System corrupted: Matter fused (-5). 22059_ ALERT: Unidentified potential threat approaching Factory. PARAMETERS=PROPULSION+1,UTILITY+2,WEAPON+1 LOCATION=FACTORY GOAL=ESCAPE Map ----- +----------------------------------------------------+ | ?????????????????????????????????????????????????? | | ?????????????????????????????????????????????????? | | ?????????????????????????????????????????????????? | | ?????????????????????????????????????????????????? | | ?????????????????????????????????????????????????? | | ?????????????????????????????????????????????????? | | ?????????????????????????????????????????????????? | | ?????????????????????????????????????????????????? | | ?????????????????????????????????????????????????? | | ?????????????????????????????????????????????????? | | ?????????????????????????????????????????????????? | | ?????????????????????????????????????????????????? | | ?????????????????????????????????????????????????? | | ?????????????????????????????????????????????????? | | ?????????????????????????????????????????????????? | | ?????????????????????????????????????????????????? | | ?????????????????????????????????????????????????? | | ?????????????????????????????????????????????????? | | ?????????????????????????????????????????????????? | | ?????????????????????????????????????????????????? | | ?????????????????????????????????????????????????? | | ?????????????????????????????????????????????????? | | ??????????? #################????????????????????? | | ?????????? #????????????????????? | | ?????????? #????????????????????? | | ?????????? @ #????????????????????? | | ?????????? #????????????????????? | | ?????????? #????????????????????? | | ???????????### ##########????????????????????? | | ?????????????# ????????????????????????????????? | | ?????????????#???????????????????????????????????? | | ?????????????????????????????????????????????????? | | ?????????????????????????????????????????????????? | | ?????????????????????????????????????????????????? | | ?????????????????????????????????????????????????? | | ?????????????????????????????????????????????????? | | ?????????????????????????????????????????????????? | | ?????????????????????????????????????????????????? | | ?????????????????????????????????????????????????? | | ?????????????????????????????????????????????????? | | ?????????????????????????????????????????????????? | | ?????????????????????????????????????????????????? | | ?????????????????????????????????????????????????? | | ?????????????????????????????????????????????????? | | ?????????????????????????????????????????????????? | | ?????????????????????????????????????????????????? | | ?????????????????????????????????????????????????? | | ?????????????????????????????????????????????????? | | ?????????????????????????????????????????????????? | | ?????????????????????????????????????????????????? | +----------------------------------------------------+ Best States ------------- Heat Dissipation 57 Energy Generation 21 Energy Capacity 310 Matter Stores 300 Matter Capacity 300 Sight Range 16 Terrain Scan Range 16 Terrain Scan Density 10 Armor Coverage 375 Core Shielding 20 Weapon Shielding 66 Weapon Cycling 25 Evasion (%) 40 Targeting Accuracy 12 Recoil Reduction 4 Item Schematics ----------------- Missile Launcher | -8/Materials | Scanalyzed Plasma Cutter | -8/Materials | Extracted Imp. EM Shotgun | -8/Materials | Extracted Recoil Stabilizer | -8/Materials | Extracted Katana | -8/Materials | Extracted Scythe | -8/Materials | Extracted Hvy. Mace | -8/Materials | Extracted Cryofiber Web | -8/Materials | Extracted Pulse Rifle | -8/Materials | Extracted Spread Laser | -8/Materials | Extracted Imp. Light Armor Plating | -8/Materials | Extracted Hvy. Assault Rifle | -8/Materials | Extracted Robot Schematics ------------------ None Fabricated ------------ Nothing Alien Tech Used ----------------- None Achievements -------------- None Challenges ------------ None Game ------ Seed AssemblySchematicUnit Manual? 0 Play Time 02:08:06 Cumulative 305.7 hours Start 2022.04.25 @ 18:04:38 End 2022.04.25 @ 20:22:02 Sessions 1 Manual Loads 0 Difficulty Rogue Special Mode None Game No. 96 Rogue 96 Adventurer 0 Explorer 0 Win Type - Total 6 Types 3/1/0/0/2/0/0/0/0 Lore% 60 Gallery% 74 Achievement% 66 Wizard Run 0 Options --------- ASCII 0 Keyboard 0 Movement Arrows Keybinds 0 Fullscreen 0 Font 28/SmallcapsGlow Map View 72x54 Tactical HUD 1 Map Filters NONE Filters NONE Steam 1 RUN: 76c69a0b-445d-4e5e-a5ea-ddffcdb937a8